bitfinex/quotes_BTCUSD_20241205
["timestamp","ask_amount","ask_price","bid_price","bid_amount"]
[1733377343015,4.9176864,102220.0,102210.0,0.09967605]
[1733377343241,4.67038231,102220.0,102210.0,0.10140737]
[1733377343450,4.23043763,102190.0,102180.0,0.0685]
[1733377343653,3.98544889,102190.0,102180.0,0.16817605]
[1733377343875,3.98544889,102190.0,102180.0,0.16990774]
[1733377343876,3.75514889,102190.0,102180.0,0.16990774]
[1733377344087,3.40954815,102160.0,102150.0,0.06852]
[1733377344314,3.36598412,102160.0,102150.0,0.06997412]
[1733377344527,3.13981223,102120.0,102110.0,0.06968992]
[1733377344752,2.14154039,102120.0,102110.0,0.0981645]
[1733377344953,1.15023052,102080.0,102030.0,0.04856494]
[1733377345180,0.26242262,102080.0,102070.0,0.08614641]
[1733377345398,0.15571312,102080.0,102070.0,0.359265]
[1733377345601,0.052176,102140.0,102090.0,0.048976]
[1733377345755,0.7935,102200.0,102190.0,0.052128]
[1733377345962,0.79408232,102200.0,102190.0,0.19331429]
[1733377346182,0.61808232,102200.0,102030.0,0.04884811]
[1733377346458,0.68146529,102200.0,102040.0,0.04822997]
[1733377346635,0.68146529,102200.0,102190.0,0.048928]
[1733377346864,0.61808232,102200.0,102180.0,0.094686]
[1733377347007,0.61808232,102200.0,102170.0,0.2445]
[1733377347191,0.00216488,102190.0,102180.0,0.048933]
[1733377347575,0.61808232,102200.0,102190.0,0.048928]
[1733377347801,0.60771026,102200.0,102190.0,0.048528]
[1733377347989,0.60771026,102200.0,102190.0,0.047488]
[1733377348254,0.60771026,102200.0,102180.0,0.097862]
[1733377348469,0.60771026,102200.0,102180.0,0.14860505]
[1733377348699,0.65441026,102200.0,102170.0,0.293437]
[1733377348923,0.65441026,102200.0,102170.0,0.39311305]
[1733377349114,0.65441026,102200.0,102170.0,0.09967605]
[1733377349326,0.65441026,102200.0,102170.0,0.14861005]
[1733377349459,0.65441026,102200.0,102180.0,0.097865]
[1733377349664,0.65441026,102200.0,102180.0,0.19754105]
[1733377349863,0.65441026,102200.0,102190.0,0.048928]
[1733377350111,0.65441026,102200.0,102180.0,0.19754105]
[1733377350326,0.65441026,102200.0,102180.0,0.14860805]
[1733377350489,0.65441026,102200.0,102180.0,0.19754005]
[1733377350692,0.65441026,102200.0,102190.0,0.048928]
[1733377351069,0.60771026,102200.0,102190.0,0.14860405]
[1733377351375,0.43171026,102200.0,102190.0,0.14860405]
[1733377351807,0.43171026,102200.0,102180.0,0.049326]
[1733377351990,0.43171026,102200.0,102180.0,0.14900205]
[1733377352233,0.43171026,102200.0,102180.0,0.049326]
[1733377352436,0.43171026,102200.0,102180.0,0.000397]
[1733377352848,0.43071026,102200.0,102180.0,0.000397]
[1733377353081,0.0465,102190.0,102180.0,0.000397]
[1733377354915,0.0465,102190.0,102180.0,0.04933]
[1733377355143,0.0465,102190.0,102180.0,0.14900605]
[1733377355369,0.51951845,102200.0,102180.0,0.14900605]
[1733377355594,0.51951845,102200.0,102180.0,0.14900205]
[1733377355816,0.51951845,102200.0,102180.0,0.13921605]
[1733377356048,0.51951845,102200.0,102180.0,0.09967605]
[1733377356276,0.34351845,102200.0,102180.0,0.13969145]
[1733377356547,0.30514906,102200.0,102180.0,0.17883745]
[1733377356782,0.30514906,102200.0,102180.0,0.13969145]
[1733377357007,0.30514906,102200.0,102190.0,0.13881805]
[1733377357480,0.30514906,102200.0,102180.0,0.0791574]
[1733377357713,0.30514906,102200.0,102180.0,0.09967605]
[1733377357945,0.30514906,102200.0,102180.0,0.13882205]
[1733377358178,0.30514906,102200.0,102170.0,0.078293]
[1733377358418,0.40514906,102200.0,102170.0,0.13882205]
[1733377358647,0.0827,102190.0,102170.0,0.13882205]
[1733377358883,0.28059208,102190.0,102150.0,0.07831]
[1733377359112,0.278427,102190.0,102160.0,0.13883005]
[1733377359332,0.474153,102190.0,102160.0,0.09967605]
[1733377359552,0.0827,102190.0,102160.0,0.13883005]
[1733377359777,0.28057822,102190.0,102160.0,0.13883005]
[1733377360004,0.6687458,102190.0,102160.0,0.09967605]
[1733377360239,0.6687458,102190.0,102140.0,0.039158]
[1733377360240,0.63353209,102180.0,102140.0,0.039158]
[1733377360483,0.341034,102180.0,102150.0,0.09967605]
[1733377360705,0.341034,102180.0,102150.0,0.13883105]
[1733377360928,0.1453,102180.0,102150.0,0.16519805]
[1733377361699,0.1453,102180.0,102150.0,0.20435305]
[1733377361905,0.54311505,102190.0,102150.0,0.20435305]
[1733377362090,0.34738905,102190.0,102150.0,0.16519805]
[1733377362323,0.1,102170.0,102150.0,0.039157]
[1733377362706,0.20184167,102180.0,102150.0,0.078312]
[1733377362903,0.20184167,102180.0,102150.0,0.039155]
[1733377363233,0.1,102180.0,102160.0,0.078304]
[1733377363468,0.335388,102190.0,102160.0,0.13882705]
[1733377363691,0.335388,102190.0,102170.0,0.078297]
[1733377363936,0.335388,102190.0,102170.0,0.078298]
[1733377364173,0.00113693,102180.0,102170.0,0.039148]
[1733377364648,0.00113693,102180.0,102160.0,0.17797905]
[1733377364649,0.00113693,102180.0,102160.0,0.17798005]
[1733377364869,0.00113693,102180.0,102160.0,0.17797805]
[1733377365095,0.00113693,102180.0,102170.0,0.03915]
[1733377365576,0.00113693,102180.0,102170.0,0.029362]
[1733377367101,0.25644906,102200.0,102170.0,0.15839805]
[1733377367251,0.25644906,102200.0,102190.0,0.029357]
[1733377368722,0.25644906,102200.0,102180.0,0.058714]
[1733377368922,0.25644906,102200.0,102180.0,0.12903305]
[1733377369178,0.25644906,102200.0,102190.0,0.029357]
[1733377369942,0.33294906,102200.0,102180.0,0.058714]
[1733377370144,0.33294906,102200.0,102190.0,0.029357]
[1733377370574,0.33294906,102200.0,98063.0,6e-05]
[1733377370851,0.5339,102190.0,102180.0,0.029359]
[1733377372334,0.3579,102190.0,102180.0,0.029359]
[1733377375423,0.33294906,102200.0,102180.0,0.019573]
[1733377375623,0.33294906,102200.0,102180.0,0.039146]
[1733377376136,0.33294906,102200.0,102180.0,0.058719]
[1733377376321,0.15694906,102200.0,102180.0,0.058719]
[1733377376572,0.15694906,102200.0,102190.0,0.019571]
[1733377377770,0.08044906,102200.0,102190.0,0.11924705]
[1733377380967,0.08044906,102200.0,102190.0,0.09967605]
[1733377381356,0.08044906,102200.0,102190.0,0.11924705]
[1733377381940,0.56659646,102210.0,102190.0,0.15838705]
[1733377382106,0.56659646,102210.0,102200.0,0.11924505]
[1733377383923,0.56659646,102210.0,102200.0,0.11865505]
[1733377385492,0.56659646,102210.0,102200.0,0.019569]
[1733377385717,0.295694,102200.0,102190.0,0.00058232]
[1733377385944,0.71977905,102200.0,102160.0,0.039151]
[1733377386187,0.5339,102170.0,102040.0,0.0962]
[1733377386425,0.63357605,102170.0,102160.0,0.019577]
[1733377387140,0.45757605,102170.0,102160.0,0.019577]
[1733377388953,0.45757605,102170.0,102160.0,0.119577]
[1733377389404,0.45757605,102170.0,102120.0,0.019581]
[1733377389616,0.32827605,102160.0,102130.0,0.019581]
[1733377389839,0.39546705,102150.0,102110.0,0.019585]
[1733377390064,0.19967605,102150.0,102120.0,0.039167]
[1733377390297,0.1286,102140.0,102120.0,0.039167]
[1733377390543,0.09967605,102130.0,102120.0,0.019583]
[1733377390773,0.1286,102140.0,102130.0,0.019582]
[1733377391019,0.00058162,102130.0,102120.0,0.019583]
[1733377391253,0.00058162,102130.0,102110.0,0.03917]
[1733377391254,0.0515403,102120.0,102110.0,0.019585]
[1733377391693,0.28221635,102120.0,102090.0,0.01959]
[1733377391923,0.28221635,102120.0,102080.0,0.01959]
[1733377391924,0.28221635,102120.0,102110.0,0.019586]
[1733377392188,0.10621635,102120.0,102110.0,0.019586]
[1733377392635,0.0065403,102120.0,102110.0,0.019586]
[1733377392864,0.10621635,102120.0,102110.0,0.019586]
[1733377393098,0.10621635,102120.0,102100.0,0.039174]
[1733377393323,0.19967605,102110.0,102080.0,0.07366831]
[1733377393559,0.19967605,102110.0,102090.0,0.019588]
[1733377393761,0.19967605,102110.0,102090.0,0.039177]
[1733377394259,0.19967605,102110.0,102090.0,0.019588]
[1733377394720,0.19967605,102110.0,102090.0,0.039176]
[1733377394940,0.1065403,102120.0,102080.0,0.019592]
[1733377395165,0.1,102110.0,102100.0,0.019587]
[1733377395358,0.19967605,102110.0,102100.0,0.019587]
[1733377395640,0.1892403,102120.0,102080.0,0.019592]
[1733377395855,0.5339,102100.0,102080.0,0.09967605]
[1733377396084,0.5339,102100.0,102080.0,0.13885805]
[1733377396311,0.5339,102100.0,102090.0,0.01959]
[1733377397001,0.3579,102100.0,102090.0,0.01959]
[1733377397241,0.3579,102100.0,102090.0,0.11926605]
[1733377398808,0.3579,102100.0,102090.0,0.15364984]
[1733377399751,0.3579,102100.0,102090.0,0.17664984]
[1733377400203,0.338311,102100.0,102090.0,0.07664984]
[1733377400426,0.255855,102100.0,102090.0,0.07664984]
[1733377400639,0.15791,102100.0,102090.0,0.09623984]
[1733377400895,0.15665979,102100.0,102090.0,0.09623984]
[1733377401362,0.16665979,102100.0,102090.0,0.09623984]
[1733377401599,0.02171479,102100.0,102090.0,0.09623984]
[1733377401824,0.35930816,102060.0,102030.0,0.06823747]
[1733377402083,0.13699109,102110.0,102050.0,0.09967605]
[1733377402341,0.1278,102160.0,102140.0,0.039159]
[1733377402534,0.1278,102160.0,102150.0,0.019579]
[1733377403018,0.1278,102160.0,102140.0,0.039158]
[1733377403236,0.12838197,102160.0,102140.0,0.039159]
[1733377403465,0.09967605,102150.0,102140.0,0.019579]
[1733377403687,0.09967605,102150.0,102130.0,0.039163]
[1733377403897,0.09967605,102150.0,102140.0,0.01958]
[1733377404334,0.12838197,102160.0,102150.0,0.019579]
[1733377404553,0.22805802,102160.0,102150.0,0.019579]
[1733377405669,0.5339,102150.0,102070.0,0.009796]
[1733377405886,0.22805802,102160.0,102140.0,0.00979]
[1733377406342,0.15173407,102160.0,102140.0,0.009789]
[1733377406748,0.15173407,102160.0,102150.0,0.009789]
[1733377408103,0.15173407,102160.0,102140.0,0.009789]
[1733377408338,0.10184171,102150.0,102130.0,0.009791]
[1733377408775,0.09967605,102150.0,102130.0,0.00979]
[1733377408997,0.09967605,102150.0,102140.0,0.00979]
[1733377409449,0.09967605,102150.0,102110.0,0.10946905]
[1733377409678,0.5339,102150.0,102140.0,0.00979]
[1733377409889,0.00058197,102160.0,102140.0,0.11925605]
[1733377410100,0.00058197,102160.0,102150.0,0.09967605]
[1733377410303,0.3,102170.0,102150.0,0.11925305]
[1733377410482,0.56659646,102190.0,102180.0,0.009786]
[1733377410689,0.15,102200.0,102180.0,0.26924805]
[1733377410889,0.0017386,102210.0,102190.0,0.11924505]
[1733377411416,0.0017386,102210.0,102200.0,0.009784]
[1733377411975,0.0627486,102220.0,102200.0,0.009784]
[1733377412187,0.0627486,102220.0,102200.0,0.02952787]
[1733377412362,0.0627486,102220.0,102210.0,0.009783]
[1733377412595,0.00174,102230.0,102220.0,0.009782]
[1733377413370,0.00024,102240.0,102220.0,0.029346]
[1733377413821,0.00024,102240.0,102230.0,0.009781]
[1733377414278,0.00024,102240.0,102220.0,0.009782]
[1733377414485,0.00024,102240.0,102210.0,0.019566]
[1733377414750,0.09967605,102230.0,102200.0,0.00017687]
[1733377415814,0.0453,102220.0,102200.0,0.00017687]
[1733377416028,0.38372313,102180.0,102170.0,0.009786]
[1733377416196,0.09967605,102210.0,102160.0,0.11925205]
[1733377416197,0.38372313,102170.0,102160.0,0.11925205]
[1733377416417,0.38372313,102170.0,102160.0,0.15309753]
[1733377417126,0.0453,102220.0,102190.0,0.009785]
[1733377417382,0.0453,102220.0,102190.0,0.10946105]
[1733377417601,0.0453,102220.0,102190.0,0.11924605]
[1733377417804,0.5339,102210.0,102200.0,0.009784]
[1733377418028,0.0017384,102230.0,102220.0,0.009782]
[1733377418695,0.0017384,102230.0,102210.0,0.009783]
[1733377418906,0.0017384,102230.0,102220.0,0.009782]
[1733377419328,0.0017384,102230.0,102210.0,0.2694189]
[1733377419536,0.0017384,102230.0,102210.0,0.2498529]
[1733377419753,0.20141445,102230.0,102210.0,0.15017685]
[1733377419980,0.20141445,102230.0,102210.0,0.2596359]
[1733377419981,0.0017384,102230.0,102210.0,0.2596359]
[1733377420201,0.0017384,102230.0,102210.0,0.10926888]
[1733377420405,0.0017384,102230.0,102220.0,0.009782]
[1733377420628,0.0017384,102230.0,102200.0,0.159784]
[1733377420855,0.0017384,102230.0,102210.0,0.09967605]
[1733377421076,0.0017384,102230.0,102210.0,0.11924205]
[1733377421333,0.0017384,102230.0,102200.0,0.15996017]
[1733377421549,0.0769384,102230.0,102200.0,0.15996017]
[1733377421758,0.0769384,102230.0,102200.0,0.16974417]
[1733377421971,0.0769384,102230.0,102200.0,0.15996117]
[1733377422177,0.10024,102240.0,102200.0,0.15996117]
[1733377422178,0.0011784,102240.0,102200.0,0.19387248]
[1733377422361,0.10085445,102240.0,102200.0,0.20365648]
[1733377423080,0.10085445,102240.0,102210.0,0.009783]
[1733377423305,0.0512832,102250.0,102220.0,0.10945705]
[1733377423306,0.5339,102230.0,102220.0,0.10945705]
[1733377423522,0.15405925,102250.0,102220.0,0.009782]
[1733377424188,0.10085445,102240.0,102200.0,0.19387248]
[1733377424396,0.5339,102230.0,102200.0,0.18408848]
[1733377424614,0.5339,102230.0,102200.0,0.19387248]
[1733377424820,0.5339,102230.0,102200.0,0.20365648]
[1733377425025,0.5339,102230.0,102200.0,0.21344048]
[1733377425241,0.5339,102230.0,102200.0,0.20365648]
[1733377425454,0.63357605,102230.0,102200.0,0.15017717]
[1733377425862,0.5339,102230.0,102210.0,0.10945905]
[1733377426083,0.5339,102230.0,102210.0,0.11924205]
[1733377426292,0.5339,102230.0,102210.0,0.10945905]
[1733377426472,0.5339,102230.0,102210.0,0.11924205]
[1733377426729,0.5339,102230.0,102220.0,0.009782]
[1733377426932,0.53272951,102230.0,102220.0,0.10945805]
[1733377427143,0.5339,102240.0,102230.0,0.019562]
[1733377427738,0.0543832,102250.0,102230.0,0.019562]
[1733377428426,0.0056832,102250.0,102240.0,0.10945605]
[1733377428924,0.0012184,102260.0,102240.0,0.10945605]
[1733377428925,4e-05,102260.0,102250.0,0.009779]
[1733377429137,4e-05,102260.0,102250.0,0.10945505]
[1733377429771,4e-05,102260.0,102250.0,0.10963222]
[1733377429979,0.00174,102270.0,102250.0,0.14974849]
[1733377430429,0.00174,102270.0,102250.0,0.00017717]
[1733377431091,0.00174,102270.0,102250.0,0.10963222]
[1733377431542,0.00174,102270.0,102260.0,0.09967605]
[1733377431752,0.00174,102270.0,102260.0,0.10945405]
[1733377433057,0.264599,102320.0,102260.0,0.14032005]
[1733377433271,0.09967605,102310.0,102270.0,0.030866]
[1733377433471,0.09967605,102310.0,102270.0,0.13054205]
[1733377433883,0.09967605,102310.0,102250.0,0.10815465]
[1733377434107,0.26465,102300.0,102250.0,0.1001647]
[1733377434334,0.09967605,102290.0,102250.0,0.1310307]
[1733377434544,0.09967605,102290.0,102250.0,0.09985322]
[1733377434747,0.09967605,102280.0,102250.0,0.00017717]
[1733377436033,0.14487605,102280.0,102250.0,0.00017717]
[1733377436457,0.05197605,102290.0,102250.0,0.09985322]
[1733377436731,0.1516521,102290.0,102250.0,0.09985322]
[1733377436931,0.5339,102260.0,102250.0,0.09985322]
[1733377437359,0.5339,102280.0,102250.0,0.09985322]
[1733377437563,0.5339,102270.0,102250.0,0.09985322]
[1733377437766,0.5339,102260.0,102250.0,0.09985322]
[1733377438827,0.5339,102280.0,102250.0,0.00017717]
[1733377439036,0.63357605,102280.0,102250.0,0.00017717]
[1733377439484,0.68217605,102280.0,102250.0,0.00017717]
[1733377440724,0.0017346,102260.0,102250.0,0.00017717]
[1733377442030,0.3596346,102270.0,102250.0,0.00017717]
[1733377442234,0.09967605,102260.0,102210.0,0.07627878]
[1733377442464,0.5339,102240.0,102220.0,0.09967605]
[1733377442666,0.5339,102240.0,102210.0,0.07627878]
[1733377442874,0.5339,102240.0,102210.0,0.10054335]
[1733377443312,0.5339,102230.0,102210.0,0.10054335]
[1733377443531,0.5339,102230.0,102210.0,0.11032635]
[1733377443744,0.5339,102230.0,102210.0,0.10054335]
[1733377443971,0.5339,102240.0,102220.0,0.10945805]
[1733377444201,0.5339,102240.0,102230.0,0.009781]
[1733377444478,0.5339,102240.0,102230.0,0.10945705]
[1733377444705,0.5339,102240.0,102230.0,0.13263357]
[1733377445826,0.5339,102240.0,102230.0,0.12285257]
[1733377446051,0.09967605,102270.0,102230.0,0.12285257]
[1733377446506,0.5339,102270.0,102240.0,0.09967605]
[1733377450225,0.5339,102260.0,102240.0,0.09967605]
[1733377451133,0.5339,102260.0,102230.0,0.06269549]
[1733377451134,1.08643276,102260.0,102230.0,0.02317652]
[1733377451347,0.5339,102240.0,102210.0,0.00117878]
[1733377451561,0.35756323,102230.0,102210.0,0.10085483]
[1733377451995,0.35756323,102230.0,102210.0,0.10054335]
[1733377452289,0.98679471,102240.0,102210.0,0.0008673]
[1733377452511,0.19564,102230.0,102210.0,0.0008673]
[1733377452737,0.39128,102230.0,102210.0,0.0008673]
[1733377452963,0.67908876,102230.0,102210.0,0.0008673]
[1733377453405,0.67908876,102230.0,102220.0,0.0008674]
[1733377453643,0.74822276,102230.0,102220.0,0.0008674]
[1733377453860,0.79362276,102230.0,102220.0,0.0008674]
[1733377454076,0.72448876,102230.0,102220.0,0.0008674]
[1733377454292,0.40234276,102230.0,102220.0,0.0008674]
[1733377454515,0.21421005,102230.0,102220.0,0.0008674]
[1733377454729,0.40234276,102230.0,102220.0,0.0008674]
[1733377454967,0.59797976,102230.0,102220.0,0.0008674]
[1733377456088,0.62884576,102230.0,102220.0,0.0008674]
[1733377456313,0.70814576,102230.0,102220.0,0.0008674]
[1733377456545,0.70814576,102230.0,102180.0,0.00031148]
[1733377456546,0.5339,102210.0,102180.0,0.00031148]
[1733377456777,1.01738376,102210.0,102180.0,0.00031148]
[1733377457023,0.3579,102200.0,102170.0,0.009787]
[1733377457246,0.3579,102200.0,102170.0,0.10946305]
[1733377457458,0.3579,102200.0,102170.0,0.09967605]
[1733377457886,0.35807466,102200.0,102170.0,0.09967605]
[1733377460350,0.25726671,102180.0,102140.0,0.00031148]
[1733377460564,0.3579,102160.0,102140.0,0.09998753]
[1733377460786,0.3579,102160.0,102140.0,0.00031148]
[1733377461004,0.3579,102140.0,102130.0,0.03974548]
[1733377461252,0.36459305,102160.0,102130.0,0.03974548]
[1733377461487,0.36459305,102160.0,102120.0,0.009792]
[1733377461708,0.36459305,102160.0,102120.0,0.09967605]
[1733377461709,0.55272576,102160.0,102120.0,0.09967605]
[1733377461919,0.5339,102150.0,102120.0,0.09967605]
[1733377462135,0.5339,102150.0,102130.0,0.09967605]
[1733377462356,0.5339,102150.0,102130.0,0.11925705]
[1733377462567,0.5339,102150.0,102130.0,0.10946605]
[1733377462785,0.5339,102150.0,102130.0,0.09967605]
[1733377462989,0.5339,102140.0,102130.0,0.10946705]
[1733377463207,0.5339,102140.0,102130.0,0.11925805]
[1733377464299,0.00017453,102160.0,102130.0,0.10946705]
[1733377464508,0.00017453,102160.0,102130.0,0.09967605]
[1733377464728,0.00017453,102160.0,102140.0,0.009789]
[1733377465004,0.00017453,102160.0,102140.0,0.11925405]
[1733377465216,0.00017453,102160.0,102140.0,0.10946505]
[1733377465667,0.00017453,102160.0,102130.0,0.0106574]
[1733377465888,0.00017453,102160.0,102130.0,0.11033345]
[1733377466323,0.01994553,102160.0,102130.0,0.11033345]
[1733377466531,0.5339,102140.0,102130.0,0.0008674]
[1733377467637,0.53133543,102140.0,102130.0,0.0008674]
[1733377468057,0.52620942,102140.0,102130.0,0.0008674]
[1733377468498,0.5329926,102120.0,102110.0,0.1508674]
[1733377468725,0.6593926,102120.0,102110.0,0.1508674]
[1733377468948,0.6593926,102120.0,102110.0,0.15059472]
[1733377468949,0.42192405,102120.0,102110.0,0.15059472]
[1733377469425,0.49105805,102120.0,102110.0,0.15059472]
[1733377469835,0.49105805,102120.0,102110.0,0.15117669]
[1733377470261,0.42192405,102120.0,102110.0,0.15117669]
[1733377470486,0.52192405,102120.0,102110.0,0.00058197]
[1733377472050,0.069134,102130.0,102110.0,0.00058197]
[1733377472265,0.16881005,102130.0,102110.0,0.00058197]
[1733377473352,0.36464105,102130.0,102110.0,0.00058197]
[1733377473773,0.069134,102120.0,102110.0,0.00058197]
[1733377474008,0.16881005,102120.0,102110.0,0.00058197]
[1733377475094,0.41305805,102120.0,102110.0,0.00058197]
[1733377475561,0.069134,102120.0,102110.0,0.00058197]
[1733377476445,0.295839,102130.0,102110.0,0.00058197]
[1733377476689,0.59135405,102130.0,102110.0,0.00058197]
[1733377476897,0.59135405,102130.0,102110.0,0.00144947]
[1733377477354,0.09967605,102130.0,102110.0,0.00144947]
[1733377477595,0.0753,102140.0,102110.0,0.02103447]
[1733377477798,0.17497605,102140.0,102110.0,0.02103347]
[1733377478279,0.37078505,102140.0,102110.0,0.02103347]
[1733377478484,0.17497605,102140.0,102120.0,0.009792]
[1733377479385,0.09967605,102140.0,102120.0,0.009792]
[1733377479606,0.09967605,102140.0,102120.0,0.009791]
[1733377480484,0.09967605,102140.0,102120.0,0.019582]
[1733377480706,0.09967605,102140.0,102120.0,0.019583]
[1733377480933,0.09967605,102140.0,102120.0,0.009791]
[1733377481142,0.5339,102130.0,102120.0,0.009791]
[1733377481549,0.65451134,102160.0,102120.0,0.009791]
[1733377481550,0.14025734,102160.0,102130.0,0.009791]
[1733377481760,0.09967605,102150.0,102130.0,0.009791]
[1733377481999,0.45549739,102160.0,102130.0,0.009791]
[1733377482228,0.55517344,102160.0,102120.0,0.019582]
[1733377482439,0.195791,102150.0,102120.0,0.019582]
[1733377482641,0.72971,102140.0,102110.0,0.01124147]
[1733377482849,1.02520705,102140.0,102110.0,0.01124147]
[1733377483055,0.63357605,102140.0,102110.0,0.02103347]
[1733377483295,0.82938605,102140.0,102110.0,0.02103347]
[1733377483964,0.82938705,102140.0,102110.0,0.02103347]
[1733377484184,0.82938705,102140.0,102110.0,0.03082547]
[1733377484402,0.82938705,102140.0,102110.0,0.02103347]
[1733377484855,1.02521005,102140.0,102110.0,0.00144947]
[1733377484874,0.82938705,102140.0,102110.0,0.01124147]
[1733377485111,0.195829,102130.0,102110.0,0.00140147]
[1733377485338,0.49134805,102130.0,102110.0,0.00140147]
[1733377486227,0.29550505,102130.0,102110.0,0.00140147]
[1733377486662,0.09967605,102130.0,102110.0,0.00140147]
[1733377486903,0.804917,102140.0,102110.0,0.02098647]
[1733377487136,0.3579,102130.0,102110.0,0.11087052]
[1733377487371,0.3579,102130.0,102120.0,0.019582]
[1733377490947,0.3579,102130.0,102120.0,0.11925805]
[1733377491161,0.0017362,102140.0,102120.0,0.11925805]
[1733377491389,0.0017362,102140.0,102130.0,0.009791]
[1733377491861,0.0017362,102140.0,102130.0,0.10946705]
[1733377492100,0.0017362,102140.0,102130.0,0.14553366]
[1733377492552,0.0017362,102140.0,102130.0,0.17966965]
[1733377492989,0.37476412,102180.0,102140.0,0.009789]
[1733377493200,0.29760253,102170.0,102140.0,0.01152151]
[1733377493409,0.49120205,102170.0,102140.0,0.01152151]
[1733377493622,0.49120205,102170.0,102140.0,0.02131051]
[1733377493845,0.49120205,102170.0,102140.0,0.01152151]
[1733377494066,0.195771,102160.0,102140.0,0.01152151]
[1733377494280,0.29544705,102160.0,102140.0,0.01152151]
[1733377495275,0.09967605,102160.0,102140.0,0.02131151]
[1733377495485,0.49339253,102160.0,102140.0,0.00173251]
[1733377495684,0.49122805,102160.0,102140.0,0.00173251]
[1733377495937,0.83153053,102150.0,102130.0,0.00173259]
[1733377496111,0.195809,102140.0,102130.0,0.00173259]
[1733377496364,0.53216741,102120.0,102110.0,0.00171295]
[1733377496566,0.195848,102120.0,102110.0,0.00171295]
[1733377496985,0.195848,102120.0,102110.0,0.00140147]
[1733377497234,0.019848,102120.0,102110.0,0.00140147]
[1733377497479,0.391681,102130.0,102110.0,0.00140147]
[1733377497701,0.29552405,102120.0,102110.0,0.00140147]
[1733377499250,0.37862405,102120.0,102110.0,0.00140147]
[1733377499475,0.44255744,102120.0,102110.0,0.00140147]
[1733377499696,0.37862405,102120.0,102110.0,0.00140147]
[1733377499897,0.44255744,102120.0,102110.0,0.00140147]
[1733377500597,0.62862405,102120.0,102110.0,0.00140147]
[1733377500812,0.56287485,102120.0,102110.0,0.00140147]
[1733377501496,0.46202685,102120.0,102110.0,0.00140147]
[1733377501705,0.5339,102090.0,102080.0,0.15]
[1733377502163,0.5339,102090.0,102080.0,0.288996]
[1733377502362,0.5339,102090.0,102080.0,0.241296]
[1733377502631,0.5339,102090.0,102080.0,0.15]
[1733377503357,0.729805,102090.0,102080.0,0.15]
[1733377503598,0.5339,102090.0,102080.0,0.15]
[1733377503810,0.22767605,102090.0,102080.0,0.15]
[1733377504039,0.42358105,102090.0,102080.0,0.15]
[1733377504997,0.37408105,102090.0,102080.0,0.15]
[1733377505437,0.29558105,102090.0,102080.0,0.15]
[1733377505906,0.195905,102090.0,102080.0,0.15]
[1733377506112,0.29774838,102090.0,102080.0,0.15]
[1733377506324,0.09967605,102090.0,102080.0,0.15]
[1733377506549,0.195905,102090.0,102080.0,0.15]
[1733377507061,0.195905,102090.0,102070.0,0.019594]
[1733377507496,0.195905,102090.0,102060.0,0.0204614]
[1733377507719,0.37189205,102090.0,102060.0,0.0204634]
[1733377507936,0.37189205,102090.0,102060.0,0.0008674]
[1733377507937,0.195936,102080.0,102060.0,0.0008674]
[1733377508405,0.49151005,102090.0,102060.0,0.0400594]
[1733377508627,0.49151005,102090.0,102070.0,0.019594]
[1733377508628,0.195916,102090.0,102070.0,0.019594]
[1733377509124,0.5339,102080.0,102060.0,0.13973345]
[1733377509341,0.5339,102070.0,102060.0,0.13973345]
[1733377510730,0.5339,102070.0,102060.0,0.17580006]
[1733377511197,0.52162727,102070.0,102060.0,0.17580006]
[1733377511412,0.34562727,102080.0,102070.0,0.019594]
[1733377511629,0.34562727,102080.0,102070.0,0.11927005]
[1733377512756,0.34562727,102080.0,102070.0,0.19477005]
[1733377513641,0.34562727,102080.0,102070.0,0.19563845]
[1733377513857,0.34562727,102080.0,102070.0,0.12013845]
[1733377514087,0.34562727,102070.0,102060.0,0.02351562]
[1733377514516,0.34562727,102070.0,102060.0,0.04310962]
[1733377516983,0.5339,102080.0,102070.0,0.019594]
[1733377517237,0.35849057,102090.0,102080.0,0.019592]
[1733377518194,0.35849057,102090.0,102070.0,0.039184]
[1733377518371,0.35849057,102090.0,102080.0,0.019592]
[1733377518812,0.35849057,102090.0,102070.0,0.039184]
[1733377519025,0.55439857,102090.0,102070.0,0.019592]
[1733377519255,0.35849057,102090.0,102070.0,0.039185]
[1733377520184,0.35849057,102090.0,102080.0,0.019592]
[1733377520413,0.35849057,102090.0,102070.0,0.039185]
[1733377520884,0.55439657,102090.0,102070.0,0.039185]
[1733377521123,0.35849057,102090.0,102080.0,0.019592]
[1733377521348,0.00059057,102090.0,102080.0,0.019592]
[1733377521562,0.391791,102100.0,102070.0,0.039185]
[1733377521563,0.587707,102100.0,102070.0,0.039185]
[1733377521781,0.09967605,102100.0,102080.0,0.019592]
[1733377522006,0.09967605,102100.0,102090.0,0.01959]
[1733377522212,0.09967605,102100.0,102080.0,0.039184]
[1733377522445,0.09967605,102100.0,102080.0,0.039183]
[1733377522666,0.09967605,102100.0,102090.0,0.01959]
[1733377522892,0.30544576,102110.0,102090.0,0.03918]
[1733377523111,0.5339,102100.0,102090.0,0.03918]
[1733377525607,0.5339,102100.0,102090.0,0.029385]
[1733377526502,0.0017368,102120.0,102100.0,0.029382]
[1733377526503,0.3579,102110.0,102100.0,0.029382]
[1733377526950,0.3579,102110.0,102090.0,0.15844405]
[1733377526951,0.3579,102110.0,102090.0,0.029383]
[1733377527190,0.553768,102110.0,102090.0,0.029383]
[1733377527405,0.64847505,102100.0,102070.0,0.09245375]
[1733377527639,0.64847505,102100.0,102070.0,0.11596737]
[1733377527864,0.64847505,102100.0,102070.0,0.06306275]
[1733377528316,0.3529,102090.0,102070.0,0.00059057]
[1733377528539,0.744736,102090.0,102070.0,0.00059057]
[1733377528991,0.548817,102090.0,102070.0,0.02998157]
[1733377529865,0.3529,102090.0,102070.0,0.05936857]
[1733377530091,0.3529,102090.0,102070.0,0.08875757]
[1733377530311,0.3529,102090.0,102070.0,0.05936857]
[1733377530759,0.548806,102090.0,102070.0,0.02997957]
[1733377531024,0.195924,102080.0,102070.0,0.00059057]
[1733377531262,0.00140943,102070.0,102060.0,0.0302626]
[1733377531488,0.53530943,102070.0,102050.0,0.029395]
[1733377531721,0.53530943,102070.0,102060.0,0.029394]
[1733377532153,0.35930943,102070.0,102060.0,0.029394]
[1733377533053,0.35930943,102070.0,102060.0,0.12907005]
[1733377533725,0.0005902,102080.0,102070.0,0.029391]
[1733377535331,0.0005902,102080.0,102060.0,0.15846005]
[1733377535775,0.0005902,102080.0,102070.0,0.029391]
[1733377536466,0.0005902,102080.0,102060.0,0.058786]